bitfinex/quotes_SOLUSD_20241010
["timestamp","ask_amount","ask_price","bid_price","bid_amount"]
[1728570688826,20.0,137.02,136.9,6.9385048]
[1728570689019,7.2998,136.99,136.95,7.3018]
[1728570689220,38.2461,137.02,136.97,7.3007]
[1728570689221,20.0,137.02,136.97,7.3007]
[1728570689424,7.2985,137.02,136.97,7.3007]
[1728570689723,20.0,137.04,136.95,25.5558]
[1728570689724,7.2993,137.0,136.95,25.5558]
[1728570689927,7.2983,137.02,136.97,7.3004]
[1728570690108,7.2965,137.06,137.01,7.2985]
[1728570690305,7.2978,137.03,136.99,18.49968]
[1728570690736,7.297,137.05,136.99,18.49968]
[1728570691026,7.2964,137.06,137.01,7.42399]
[1728570691327,7.2964,137.06,137.02,1.45934575]
[1728570691543,18.2383,137.08,136.99,32.15619]
[1728570691708,7.2975,137.04,137.0,0.12549]
[1728570692043,7.2978,137.03,136.99,24.85699]
[1728570692712,7.3001,136.99,136.95,6.0941]
[1728570692916,65.646884,137.05,136.95,6.0941]
[1728570692917,7.2993,137.0,136.96,8.76134219]
[1728570693308,7.3004,136.98,136.96,1.45994219]
[1728570693543,7.3004,136.98,136.92,36.5152]
[1728570693713,7.3004,136.98,136.94,7.3022]
[1728570693909,7.3004,136.98,136.93,1.46006523]
[1728570693910,43.776884,137.05,136.95,1.46006366]
[1728570694121,7.2989,137.01,136.97,7.3005]
[1728570694825,38.2422,137.05,136.95,18.2547]
[1728570695038,7.2983,137.02,136.96,23.902374]
[1728570695364,7.2993,137.0,136.96,31.203674]
[1728570695707,7.299,137.01,136.97,7.3008]
[1728570695908,7.2986,137.02,136.98,7.3003]
[1728570696144,7.2977,137.03,136.99,8.75934159]
[1728570696310,7.2982,137.02,136.98,7.3002]
[1728570696810,38.2422,137.05,136.96,23.902374]
[1728570696811,7.2993,137.0,136.96,31.078084]
[1728570697004,7.2993,137.0,136.97,0.12549]
[1728570697209,20.0,137.05,136.94,18.2551]
[1728570697522,20.0,137.02,136.94,18.2551]
[1728570698231,20.0,137.05,136.97,7.3005]
[1728570698527,20.0,137.01,136.97,7.3005]
[1728570698726,20.0,137.02,136.98,1.45974353]
[1728570698920,20.0,137.02,136.97,0.25098]
[1728570699125,20.0,137.02,136.9,36.53916646]
[1728570699126,20.0,137.02,136.93,18.2565]
[1728570699439,20.0,137.02,136.9,0.8601048]
[1728570699440,65.646884,137.03,136.9,19.1204048]
[1728570699652,7.301,136.97,136.93,7.3029]
[1728570700020,53.2689,137.03,136.94,1.46011903]
[1728570700343,53.2689,137.03,136.97,7.3004]
[1728570700344,7.2988,137.01,136.97,7.3004]
[1728570700723,7.2988,137.01,136.98,0.12549]
[1728570700943,7.2998,136.99,136.96,18.2532]
[1728570701126,7.2998,136.99,136.97,0.12549]
[1728570701437,7.3001,136.99,136.97,1.45987832]
[1728570701649,7.2999,136.99,136.96,1.46006436]
[1728570701817,7.3003,136.98,136.94,7.3023]
[1728570702021,20.0,137.01,136.95,8.76187059]
[1728570702022,7.2999,136.99,136.95,8.76187059]
[1728570702220,20.0,137.01,136.93,18.2563]
[1728570702422,20.0,137.01,136.91,6.0126]
[1728570702622,7.3028,136.94,136.91,6.0126]
[1728570702872,7.3028,136.94,136.9,26.4250048]
[1728570703251,7.3021,136.95,136.91,8.76440261]
[1728570703447,7.3019,136.95,136.91,7.3039]
[1728570704140,38.2499,136.99,136.9,0.8601048]
[1728570704338,7.3019,136.95,136.92,25.5618]
[1728570704655,7.3019,136.95,136.91,7.304]
[1728570705453,38.2499,136.99,136.9,0.8601048]
[1728570705625,7.3023,136.95,136.91,8.76391832]
[1728570705824,7.3027,136.94,136.9,8.1645048]
[1728570706533,18.2554,136.95,136.9,0.8601048]
[1728570706737,20.0,136.94,136.9,0.8601048]
[1728570707258,20.0,136.94,136.87,6.5865]
[1728570707553,7.3045,136.91,136.88,1.46078975]
[1728570707861,20.0,136.93,136.9,7.3042]
[1728570708150,20.0,136.93,136.89,18.2624]
[1728570708323,20.0,136.93,136.77,6.2319]
[1728570708324,7.3078,136.84,136.77,6.2319]
[1728570708521,20.0,136.84,136.79,18.2761]
[1728570708950,27.3078,136.84,136.79,25.5864]
[1728570709524,27.3078,136.84,136.79,18.2761]
[1728570710455,27.3078,136.84,136.77,6.2319]
[1728570710752,27.3078,136.84,136.78,1.4617509]
[1728570711046,39.834274,136.9,136.78,1.4617509]
[1728570711047,57.970884,136.9,136.78,1.4617509]
[1728570711231,20.0,136.85,136.82,7.3087]
[1728570711550,20.0,136.85,136.83,1.9468287]
[1728570711727,20.0,136.85,136.83,0.4854]
[1728570713022,20.0,136.87,136.84,0.12549]
[1728570713250,8.90055589,136.95,136.84,0.25098]
[1728570713462,6.364,136.99,136.88,0.25098]
[1728570713666,7.3023,136.95,136.91,7.3039]
[1728570713841,7.3015,136.96,136.92,1.46049978]
[1728570714232,7.302,136.95,136.92,1.46049978]
[1728570714633,15.4935,137.0,136.88,0.25098]
[1728570714843,7.3026,136.94,136.9,0.12549]
[1728570716274,7.3035,136.92,136.88,7.3055]
[1728570716561,7.305,136.9,136.85,7.3067]
[1728570716734,7.305,136.9,136.84,33.397]
[1728570716735,18.2566,136.94,136.87,1.46094334]
[1728570716931,20.0,136.95,136.87,1.46094334]
[1728570717150,7.3035,136.92,136.88,7.3055]
[1728570717353,20.0,136.95,136.89,1.46084501]
[1728570717546,0.12549,136.96,136.89,8.76584501]
[1728570717547,7.3026,136.94,136.89,8.76584501]
[1728570717740,7.3015,136.96,136.91,7.3036]
[1728570718063,7.3015,136.96,136.92,1.46047784]
[1728570718568,7.3021,136.95,136.92,1.46047784]
[1728570719250,7.3021,136.95,136.9,18.38639]
[1728570719448,7.3028,136.94,136.9,18.38639]
[1728570720366,18.2513,136.98,136.9,0.25098]
[1728570720570,7.3025,136.94,136.9,7.55548]
[1728570720863,18.2513,136.98,136.94,7.3024]
[1728570720864,7.3007,136.98,136.94,7.3024]
[1728570721173,7.3007,136.98,136.95,1.46011858]
[1728570721475,7.2992,137.0,136.96,7.3012]
[1728570721653,18.2435,137.04,136.97,1.4598766]
[1728570721858,7.2988,137.01,136.97,1.4598766]
[1728570722074,7.2994,137.0,136.97,1.4598766]
[1728570722251,7.2994,137.0,136.96,1.58538993]
[1728570722448,7.2994,137.0,136.96,8.88668993]
[1728570722655,18.2435,137.04,136.96,8.88668993]
[1728570722861,7.2987,137.01,136.97,7.3004]
[1728570723169,7.2987,137.01,136.96,7.55218]
[1728570723473,7.2994,137.0,136.96,0.12549]
[1728570724172,7.3007,136.98,136.96,0.12549]
[1728570724392,7.2999,136.99,136.96,0.12549]
[1728570724667,20.0,137.01,136.93,0.12549]
[1728570724880,20.0,137.04,136.95,6.14299]
[1728570725044,20.0,137.04,136.97,7.3004]
[1728570725247,7.2988,137.01,136.98,1.45977793]
[1728570725986,34.4781,137.05,137.01,7.2986]
[1728570725987,7.2967,137.05,137.01,7.2986]
[1728570726157,21.5511,137.1,137.02,1.45941213]
[1728570726352,7.2962,137.06,137.02,8.75731213]
[1728570726959,21.5511,137.1,137.03,18.2436]
[1728570727164,7.2961,137.06,137.03,18.2436]
[1728570727363,7.2967,137.05,137.01,7.2986]
[1728570727568,7.2967,137.05,137.02,1.45936117]
[1728570727764,7.2959,137.07,137.03,7.2976]
[1728570728079,7.2951,137.08,137.04,1.45914737]
[1728570728373,18.2328,137.12,137.04,1.45914737]
[1728570728573,7.2941,137.1,137.05,0.25098]
[1728570728756,16.6316,137.14,137.06,1.45880629]
[1728570729074,7.2938,137.11,137.07,1.45881849]
[1728570729277,16.6316,137.14,137.05,18.36609]
[1728570729278,34.8616,137.14,137.05,18.36609]
[1728570729468,7.2944,137.1,137.05,25.66259]
[1728570729675,7.2944,137.1,137.06,1.45893732]
[1728570729874,7.2948,137.09,137.05,25.66259]
[1728570730285,34.8616,137.14,137.06,1.4589179]
[1728570730490,7.2941,137.1,137.06,8.7549179]
[1728570730866,7.2941,137.1,137.05,25.66219]
[1728570731066,7.2941,137.1,137.06,7.2958]
[1728570731271,7.2941,137.1,137.06,8.75461868]
[1728570731458,18.23,137.14,137.05,18.36609]
[1728570731459,7.2954,137.08,137.05,0.12549]
[1728570731973,7.2966,137.05,137.0,6.6552]
[1728570732178,7.2983,137.02,137.0,6.6552]
[1728570732377,23.902374,137.09,136.97,15.0032]
[1728570732378,7.2987,137.01,136.97,15.0032]
[1728570732959,7.2983,137.02,136.96,24.9078]
[1728570733163,7.2983,137.02,136.97,7.3006]
[1728570734164,7.2983,137.02,136.98,0.25098]
[1728570734884,7.2983,137.02,136.99,0.12549]
[1728570735404,7.3003,136.98,136.96,6.6552]
[1728570735690,7.3002,136.99,136.95,7.3019]
[1728570735986,20.0,137.04,136.96,1.45992663]
[1728570736194,7.2988,137.01,136.97,7.3008]
[1728570736368,7.2983,137.02,136.98,8.76006026]
[1728570736695,7.2989,137.01,136.97,7.3007]
[1728570737194,7.2983,137.02,136.98,0.12549]
[1728570737369,7.2983,137.02,136.98,1.58517408]
[1728570737576,7.2988,137.01,136.98,0.12549]
[1728570738167,20.0,137.02,136.93,23.867]
[1728570738364,7.303,136.93,136.89,15.1138]
[1728570738564,56.4924,137.02,136.83,0.4854]
[1728570738565,7.3051,136.89,136.83,0.4854]
[1728570738791,20.0,136.95,136.85,7.3068]
[1728570738792,7.3046,136.9,136.85,7.3068]
[1728570738964,20.0,136.93,136.85,7.3068]
[1728570739166,43.776884,136.93,136.85,18.2674]
[1728570739366,7.3062,136.87,136.83,0.4854]
[1728570739585,60.541064,136.94,136.84,1.46116399]
[1728570739586,7.3055,136.89,136.84,1.46116399]
[1728570739792,7.3055,136.89,136.84,8.76876399]
[1728570740095,7.3055,136.89,136.85,7.3072]
[1728570740281,7.3055,136.89,136.86,1.46102619]
[1728570740495,43.776884,136.92,136.83,18.7555]
[1728570740791,7.3058,136.88,136.83,26.0634]
[1728570740996,18.2581,136.93,136.84,7.3077]
[1728570740997,7.3052,136.89,136.84,7.3077]
[1728570741294,7.3052,136.89,136.83,18.7555]
[1728570741295,7.3052,136.89,136.85,8.76831888]
[1728570741467,18.2608,136.91,136.83,0.4854]
[1728570741665,7.3066,136.87,136.83,0.4854]
[1728570743284,7.3072,136.86,136.83,0.4854]
[1728570743493,7.3063,136.87,136.83,0.4854]
[1728570743872,20.0,136.9,136.84,0.12549]
[1728570744100,7.3071,136.86,136.83,0.4854]
[1728570746190,20.0,136.9,136.83,0.4854]
[1728570746793,7.3078,136.84,136.83,0.4854]
[1728570748901,27.3078,136.84,136.83,0.4854]
[1728570750372,7.3078,136.84,136.83,0.4854]
[1728570750578,20.0,136.86,136.83,0.4854]
[1728570750886,21.91091984,136.89,136.83,0.4854]
[1728570751201,18.2618,136.9,136.84,1.46138076]
[1728570751202,7.3061,136.88,136.84,1.46138076]
[1728570751394,44.69636268,136.92,136.84,8.76908076]
[1728570751395,7.3053,136.89,136.84,8.76908076]
[1728570751600,7.3056,136.88,136.85,1.46117263]
[1728570751801,22.4857,136.92,136.83,0.4854]
[1728570752109,7.3078,136.84,136.83,0.4854]
[1728570752315,27.3078,136.84,136.83,0.4854]
[1728570752475,7.3072,136.85,136.83,0.4854]
[1728570752673,7.3063,136.87,136.83,0.4854]
[1728570752894,27.3069,136.86,136.83,0.4854]
[1728570754007,7.3069,136.86,136.83,0.4854]
[1728570754205,7.3065,136.87,136.83,0.4854]
[1728570754497,0.12549,136.91,136.83,0.4854]
[1728570754498,20.0,136.89,136.83,0.4854]
[1728570754708,7.3078,136.84,136.83,0.4854]
[1728570754872,20.0,136.87,136.83,0.4854]
[1728570755074,7.3074,136.85,136.83,0.4854]
[1728570755773,18.2645,136.88,136.83,0.4854]
[1728570756293,7.3074,136.85,136.83,0.4854]
[1728570756496,7.3078,136.84,136.83,0.4854]
[1728570756889,27.3078,136.84,136.83,0.4854]
[1728570757091,18.2645,136.88,136.79,19.73742077]
[1728570757302,18.2645,136.88,136.81,25.5825]
[1728570757303,7.3076,136.85,136.81,25.5825]
[1728570757705,27.3062,136.87,136.83,7.3082]
[1728570757878,27.3062,136.87,136.84,1.46128528]
[1728570758207,7.3062,136.87,136.84,1.46128528]
[1728570758387,20.0,136.9,136.85,1.58670692]
[1728570758579,20.0,136.9,136.86,7.43179]
[1728570758779,7.3052,136.89,136.87,1.4610251]
[1728570759500,7.3049,136.9,136.87,1.4610251]
[1728570759674,7.3051,136.89,136.86,0.12549]
[1728570759878,7.3044,136.91,136.87,7.3061]
[1728570760096,18.2572,136.94,136.86,0.12549]
[1728570760992,7.3052,136.89,136.86,1.46093238]
[1728570761189,20.0,136.89,136.86,1.46093238]
[1728570761389,18.2593,136.92,136.83,6.3713]
[1728570761592,20.0,136.89,136.83,6.3713]
[1728570761789,20.0,136.89,136.8,20.0]
[1728570761994,18.2644,136.88,136.8,20.0]
[1728570762199,7.3073,136.85,136.81,7.309]
[1728570763206,7.308,136.84,136.8,25.5844]
[1728570763722,7.3074,136.85,136.81,7.3093]
[1728570764506,7.3074,136.85,136.81,24.027864]
[1728570764682,18.2644,136.88,136.82,1.46141222]
[1728570764876,7.3069,136.86,136.83,0.12549]
[1728570765101,40.6819281,136.91,136.84,23.902374]
[1728570765304,7.306,136.88,136.85,0.12549]
[1728570765878,7.3051,136.89,136.85,8.89359775]
[1728570766207,7.3051,136.89,136.87,0.12549]
[1728570766580,7.3043,136.91,136.87,32.66945291]
[1728570766796,18.2573,136.94,136.79,112.08762053]
[1728570766797,36.5135,136.94,136.79,6.1475]
[1728570767095,7.307,136.86,136.82,7.3088]
[1728570767520,7.3074,136.85,136.81,25.5825]
[1728570767713,7.3081,136.84,136.8,7.3099]
[1728570768022,21.60568236,136.93,136.82,7.3083]
[1728570768023,7.3068,136.86,136.82,7.3083]
[1728570768603,7.3073,136.85,136.81,7.3092]
[1728570769216,20.0,136.9,136.81,1.46138872]
[1728570769411,7.3079,136.84,136.81,1.46159228]
[1728570769624,7.3078,136.84,136.8,25.5845]
[1728570769805,7.3078,136.84,136.81,1.46151175]
[1728570770004,20.0,136.86,136.81,1.46151175]
[1728570770219,7.3085,136.83,136.79,13.4579]
[1728570770705,7.3085,136.83,136.8,1.46166656]
[1728570770904,7.3085,136.83,136.79,13.4579]
[1728570771419,7.3089,136.82,136.79,6.1475]
[1728570772127,7.3089,136.82,136.8,0.12549]
[1728570772326,20.0,136.86,136.8,1.58719693]
[1728570772515,21.82420323,136.92,136.81,23.902374]
[1728570772701,21.82420323,136.92,136.85,18.2676]
[1728570772919,21.82420323,136.92,136.82,1.46119638]
[1728570773108,7.3068,136.86,136.83,0.12549]
[1728570773506,7.3068,136.86,136.83,1.58678622]
[1728570773805,7.3068,136.86,136.83,0.12549]
[1728570774329,80.21370323,136.92,136.82,1.46130065]
[1728570774503,7.3086,136.83,136.79,31.7325]
[1728570774707,27.3072,136.86,136.82,7.3087]
[1728570774923,7.3073,136.85,136.83,1.46135909]
[1728570775219,20.0,136.86,136.81,18.2731]
[1728570775416,7.3084,136.83,136.79,13.4576]
[1728570775622,7.3079,136.84,136.8,8.77155134]
[1728570775824,20.0,136.89,136.79,6.1475]
[1728570776028,7.3088,136.82,136.79,6.1475]
[1728570776335,20.0,136.81,136.76,0.8601048]
[1728570776623,27.3096,136.81,136.77,7.3114]
[1728570777008,27.3096,136.81,136.78,1.46188266]
[1728570777409,27.3096,136.81,136.77,7.3114]
[1728570777631,27.3096,136.81,136.78,0.12549]
[1728570777963,27.3096,136.81,136.78,1.58737278]
[1728570778233,20.0,136.81,136.78,8.89817278]
[1728570778397,27.3094,136.81,136.78,1.58737278]
[1728570779530,7.3099,136.8,136.78,0.12549]
[1728570780025,7.3099,136.8,136.78,1.5874064]
[1728570780327,7.3099,136.8,136.79,1.4619128]
[1728570780531,20.0,136.83,136.79,1.4619128]
[1728570780709,20.0,136.82,136.79,1.4619128]
[1728570780911,20.0,136.84,136.76,0.8601048]
[1728570781103,7.3103,136.8,136.77,0.12549]
[1728570781305,7.3103,136.8,136.77,8.89884949]
[1728570781611,7.3092,136.82,136.79,0.12549]
[1728570781824,7.3094,136.81,136.79,1.58724245]
[1728570782022,38.2678,136.86,136.79,1.58724245]
[1728570782218,7.309,136.82,136.79,1.58724245]
[1728570782414,20.0,136.86,136.8,0.12549]
[1728570782732,36.5273,136.89,136.8,0.12549]
[1728570782733,7.3076,136.85,136.81,7.3093]
[1728570783026,7.3081,136.84,136.82,1.46153772]
[1728570783208,18.2638,136.89,136.82,1.46153772]
[1728570783209,7.3076,136.85,136.82,1.46153772]
[1728570783406,7.307,136.86,136.83,0.12549]
[1728570784230,18.2638,136.89,136.81,18.2732]
[1728570784411,7.3081,136.84,136.81,18.2732]
[1728570784613,7.3081,136.84,136.82,1.4615327]
[1728570784826,20.0,136.88,136.82,1.4615327]
[1728570785013,7.3069,136.86,136.82,8.7702327]
[1728570785609,20.0,136.86,136.83,7.43359]
[1728570785820,27.307,136.86,136.82,7.3086]
[1728570786139,27.307,136.86,136.8,0.12549]
[1728570786140,7.3083,136.83,136.8,18.52468]
[1728570786313,20.0,136.85,136.77,18.2781]
[1728570786509,7.3079,136.84,136.8,7.3098]
[1728570786708,7.3079,136.84,136.81,1.46156901]
[1728570786924,7.3079,136.84,136.8,7.3098]
[1728570787127,7.3079,136.84,136.81,1.46160067]
[1728570787437,7.3079,136.84,136.79,18.2758]
[1728570787438,20.0,136.85,136.79,18.2758]
[1728570787607,18.2697,136.84,136.76,19.1390048]
[1728570787808,7.3099,136.8,136.76,26.4506048]
[1728570788031,7.309,136.82,136.78,18.2772]
[1728570788327,20.0,136.83,136.79,1.46179638]
[1728570788630,36.5271,136.89,136.76,0.8601048]
[1728570788631,20.0,136.84,136.76,0.8601048]
[1728570788936,7.3102,136.8,136.76,8.1718048]
[1728570789141,20.0,136.84,136.77,1.46196379]
[1728570789429,7.3092,136.82,136.78,7.3105]
[1728570789628,23.776884,136.88,136.79,1.46177449]
[1728570789802,23.776884,136.88,136.76,0.8601048]
[1728570789803,7.3078,136.84,136.8,7.3096]
[1728570790003,44.21604677,136.91,136.81,19.73497504]
[1728570790204,22.5654,136.91,136.81,19.73497504]
[1728570790425,7.3073,136.85,136.82,7.43429]
[1728570790621,7.3065,136.87,136.83,8.76963732]
[1728570791336,18.2631,136.89,136.83,8.76963732]
[1728570791337,7.3068,136.86,136.83,1.46143732]
[1728570792129,20.0,136.88,136.81,18.2734]
[1728570792311,7.3078,136.84,136.82,1.46150196]
[1728570792508,7.3078,136.84,136.81,1.587008]
[1728570792813,7.3074,136.85,136.81,8.896308]
[1728570793224,7.3074,136.85,136.81,7.43479]
[1728570794106,23.776884,136.88,136.77,18.2779]
[1728570794334,7.3094,136.81,136.77,25.5893]
[1728570794521,18.2671,136.86,136.77,18.2779]
[1728570794727,7.309,136.82,136.78,7.3106]
[1728570795112,7.3094,136.81,136.78,7.3106]
[1728570795312,7.309,136.82,136.79,0.12549]
[1728570795521,7.309,136.82,136.79,1.58725373]
[1728570795838,7.309,136.82,136.79,1.58724855]
[1728570796016,7.309,136.82,136.79,0.12549]
[1728570796416,7.309,136.82,136.79,1.58725322]
[1728570796618,20.0,136.83,136.79,19.86275322]
[1728570796916,7.3088,136.82,136.79,27.17305322]
[1728570797107,20.0,136.85,136.8,0.12549]
[1728570797312,20.0,136.83,136.8,7.3099]
[1728570797536,20.0,136.83,136.79,18.40099]
[1728570797837,27.3083,136.83,136.79,25.71129]
[1728570798231,27.3083,136.83,136.8,7.3099]
[1728570798734,7.3079,136.84,136.8,7.3099]
[1728570798947,7.307,136.86,136.82,7.3087]
[1728570799121,7.307,136.86,136.83,0.12549]
[1728570799450,7.307,136.86,136.83,1.58686388]
[1728570799614,18.2639,136.89,136.83,0.12549]
[1728570800142,22.5654,136.91,136.83,1.58685904]
[1728570800314,22.5654,136.91,136.83,19.85725904]
[1728570800509,7.3062,136.87,136.83,25.70389]
[1728570800718,22.5654,136.91,136.84,8.76892901]
[1728570800915,22.5654,136.91,136.83,18.39589]
[1728570800916,7.3062,136.87,136.83,18.39589]
[1728570801130,7.3062,136.87,136.83,25.70399]
[1728570801439,59.640131,136.95,136.83,0.12549]
[1728570801730,7.3063,136.87,136.83,1.58684101]
[1728570801932,7.3068,136.86,136.83,0.12549]
[1728570802312,7.3068,136.86,136.83,1.58684451]
[1728570802511,7.3068,136.86,136.83,0.12549]
[1728570803233,7.3063,136.87,136.83,0.12549]
[1728570803436,7.3053,136.89,136.84,7.3072]
[1728570803644,7.3049,136.9,136.86,7.43209]
[1728570803820,20.0,136.89,136.86,7.43209]
[1728570804242,20.0,136.89,136.87,1.46101119]
[1728570804553,20.0,136.9,136.87,7.3061]
[1728570804738,20.0,136.9,136.87,8.76706756]
[1728570805451,47.01437793,136.97,136.88,18.38929]
[1728570805626,7.3036,136.92,136.89,1.46073219]
[1728570805830,7.3044,136.91,136.88,0.12549]
[1728570806631,7.3051,136.9,136.86,7.3067]
[1728570808359,7.3036,136.92,136.88,7.3051]
[1728570808650,20.0,136.91,136.88,7.3056]
[1728570808855,7.3038,136.92,136.88,7.3056]
[1728570809061,7.3038,136.92,136.89,1.46084222]
[1728570809236,7.3038,136.92,136.88,7.3056]
[1728570809434,7.304,136.91,136.88,7.3056]
[1728570809848,7.3038,136.92,136.89,0.12549]
[1728570810349,33.8455,136.96,136.9,7.3045]
[1728570810551,15.5912,136.96,136.91,1.46061214]
[1728570810744,21.0424,137.01,136.94,0.12549]
[1728570810954,21.0424,137.01,136.94,8.88792137]
[1728570811154,7.3009,136.97,136.94,0.12549]
[1728570811767,18.2483,137.0,136.9,6.53]
[1728570811937,7.3035,136.92,136.88,7.3054]
[1728570812866,18.2537,136.96,136.88,18.2638]
[1728570813039,7.3026,136.94,136.9,7.3041]
[1728570813244,20.0,136.94,136.91,8.76455912]
[1728570813935,20.0,136.94,136.91,7.304]
[1728570814337,7.3024,136.94,136.91,0.12549]
[1728570814539,7.3024,136.94,136.9,25.5656]
[1728570814540,18.2524,136.97,136.87,18.2645]
[1728570814752,7.3031,136.93,136.89,7.43049]
[1728570814933,20.0,136.98,136.91,0.12549]
[1728570815266,28.67530039,137.01,136.89,0.25098]
[1728570815267,21.0424,137.01,136.89,18.38759]
[1728570815489,7.3033,136.93,136.89,25.69249]
[1728570816157,7.3036,136.92,136.89,18.38759]
[1728570816459,20.0,136.94,136.89,0.12549]
[1728570816841,7.3036,136.92,136.89,0.12549]
[1728570818155,7.3036,136.92,136.89,7.43059]
[1728570818360,7.304,136.91,136.88,25.5695]
[1728570818564,7.3036,136.92,136.88,25.5695]
[1728570818764,7.3032,136.93,136.89,7.43049]
[1728570819259,20.0,136.94,136.89,0.12549]
[1728570819440,7.3032,136.93,136.89,7.43049]
[1728570819644,7.3026,136.94,136.91,7.304]
[1728570819851,7.3026,136.94,136.9,18.2613]
[1728570820941,20.0,136.97,136.91,1.58603832]
[1728570821262,20.0,136.97,136.9,18.2613]
[1728570821469,18.2536,136.96,136.88,0.12549]
[1728570821640,20.0,136.97,136.88,0.12549]
[1728570821641,7.3046,136.9,136.88,0.12549]
[1728570822042,7.3042,136.91,136.87,25.5701]
[1728570822661,18.2594,136.92,136.86,6.4749]
[1728570822859,7.3053,136.89,136.85,27.3069]
[1728570823364,7.3052,136.89,136.86,7.3067]
[1728570823663,18.2594,136.92,136.86,7.3067]
[1728570823664,7.3048,136.9,136.86,7.3067]
[1728570823857,7.3048,136.9,136.87,1.46092391]
[1728570824452,7.3048,136.9,136.87,8.76702391]
[1728570824753,7.3044,136.91,136.87,7.3061]
[1728570824958,20.0,136.93,136.87,7.3061]
[1728570825177,7.3046,136.9,136.87,7.3061]
[1728570825967,20.0,136.93,136.88,8.89200938]
[1728570826141,7.3038,136.92,136.88,8.89200938]
[1728570826457,7.3026,136.94,136.9,7.3042]
[1728570826644,20.0,136.94,136.91,1.46062632]
[1728570826854,7.3,136.99,136.93,24.027864]
[1728570827053,7.2993,137.0,136.96,7.3009]
[1728570827262,7.2989,137.01,136.97,8.7606587]
[1728570827572,7.3,136.99,136.96,0.12549]
[1728570827863,7.3004,136.98,136.93,42.158774]
[1728570828033,7.3004,136.98,136.95,0.12549]
[1728570828238,34.2188,137.02,136.95,7.42729]
[1728570828239,7.2998,136.99,136.95,7.42729]
[1728570828464,7.2998,136.99,136.96,1.46007924]
[1728570828855,7.2998,136.99,136.95,7.42729]
[1728570829365,7.2994,137.0,136.96,8.76137946]
[1728570829565,15.9729,137.02,136.95,0.12549]
[1728570829772,7.2999,136.99,136.95,0.12549]
[1728570829942,7.2993,137.0,136.96,0.12549]
[1728570830267,20.0,137.01,136.96,1.58546301]
[1728570830447,20.0,137.01,136.98,7.3002]
[1728570831438,7.2978,137.03,136.99,7.2994]
[1728570831645,7.2978,137.03,136.99,7.42489]
[1728570831955,7.2978,137.03,137.0,1.45961303]
[1728570832345,7.2972,137.04,137.0,8.75881303]
[1728570832866,20.0,137.03,137.0,8.75881303]
[1728570833262,20.0,137.03,137.0,1.45961303]
[1728570833766,20.0,137.03,137.0,18.2477]
[1728570833941,20.0,137.03,137.0,25.5468]
[1728570834142,38.63521255,137.1,137.01,1.5850809]
[1728570834338,20.0,137.09,137.03,0.12549]
[1728570834651,20.0,137.09,137.03,8.88189685]
[1728570834652,7.2957,137.07,137.03,8.88189685]
[1728570834846,7.2957,137.07,137.03,7.42269]
[1728570835065,20.0,137.09,137.04,1.45915625]
[1728570835368,18.2318,137.13,137.05,0.12549]
[1728570835557,7.2934,137.11,137.07,7.2955]
[1728570835746,16.5564,137.14,137.08,8.75353805]
[1728570835747,7.2927,137.13,137.08,8.75353805]
[1728570835943,16.5564,137.14,137.09,7.41979]
[1728570836166,267.97154558,137.19,137.1,1.58397843]
[1728570836167,7.2903,137.17,137.1,1.58397843]
[1728570836350,7.2912,137.15,137.11,7.41879]
[1728570837264,7.2912,137.15,137.11,0.12549]
[1728570837996,7.2924,137.13,137.1,0.12549]
[1728570838166,23.776884,137.17,137.1,1.58400347]